fUST/lending_fUST_20250303
["ID","MTS","AMOUNT","RATE_DAILY","PERIOD"]
[355157441,1740937858431,-250.0,0.0004973,10]
[355157443,1740937858442,-250.0,0.0004973,10]
[355157445,1740937858452,-250.0,0.0004973,10]
[355157447,1740937858461,-250.0,0.0004973,10]
[355157449,1740937858471,-290.157754,0.0004973,10]
[355157451,1740937858480,-150.0,0.0004973,14]
[355157453,1740937858491,-150.0,0.0004973,14]
[355157455,1740937858500,-720.0,0.00049755,30]
[355157457,1740937858510,-500.0,0.00049755,30]
[355157459,1740937858520,-500.0,0.00049755,30]
[355157461,1740937858529,-160.0,0.00049775,13]
[355157463,1740937858539,-720.0,0.00049782,30]
[355157465,1740937858549,-500.0,0.00049782,30]
[355157467,1740937858562,-500.0,0.00049782,30]
[355157469,1740937858572,-720.0,0.0004981,30]
[355157471,1740937858583,-500.0,0.0004981,30]
[355157473,1740937858594,-500.0,0.0004981,30]
[355157475,1740937858604,-720.0,0.00049837,30]
[355157477,1740937858614,-500.0,0.00049837,30]
[355157479,1740937858623,-500.0,0.00049837,30]
[355157481,1740937858633,-678.84,0.00049863,120]
[355157483,1740937858643,-250.0,0.00049863,10]
[355157485,1740937858653,-720.0,0.00049864,30]
[355157487,1740937858664,-500.0,0.00049864,30]
[355157489,1740937858674,-939.08312612,0.00049864,30]
[355157491,1740937858688,-720.0,0.00049892,30]
[355157493,1740937858697,-500.0,0.00049892,30]
[355157495,1740937858707,-2257.74,0.000499,2]
[355157498,1740937858717,-150.0,0.000499,120]
[355157500,1740937858727,-150.0,0.000499,120]
[355157502,1740937858736,-2132.19,0.000499,30]
[355157504,1740937858746,-56586.38345008,0.000499,30]
[355157507,1740937858764,-3116.69654992,0.000499,30]
[355157509,1740937858773,-720.0,0.00049919,30]
[355157511,1740937858784,-500.0,0.00049919,30]
[355157513,1740937858793,-6.05052005,0.00049947,30]
[355157515,1740937858805,-713.94947995,0.00049947,30]
[355157517,1740937858815,-500.0,0.00049947,30]
[355157519,1740937858825,-151.0,0.00049949,2]
[355157521,1740937858836,-168.6,0.0004995,2]
[355157523,1740937858846,-168.6,0.0004995,2]
[355157525,1740937858856,-168.6,0.0004995,2]
[355157526,1740937858871,-168.6,0.0004995,2]
[355157528,1740937858881,-168.6,0.0004995,2]
[355157530,1740937858896,-168.656918,0.0004995,2]
[355157532,1740937858916,-224.84961601,0.0004995,60]
[355157534,1740937858939,-75.29398604,0.0004995,2]
[355161104,1740939032931,-2111.28725691,0.00018251,2]
[355161105,1740939032944,-1571.865441,0.00018281,2]
[355161107,1740939032957,-1963.31483396,0.00018435,2]
[355161109,1740939032969,-500.0,0.00018973,2]
[355161111,1740939032981,-500.0,0.00018973,2]
[355161113,1740939032994,-500.0,0.00018973,2]
[355161115,1740939033007,-500.0,0.00018973,2]
[355161117,1740939033020,-500.0,0.00018973,2]
[355161119,1740939033033,-438.82730797,0.00018973,2]
[355161122,1740939033049,-61.17269203,0.00018973,2]
[355161124,1740939033064,-500.0,0.00018973,2]
[355161127,1740939033076,-500.0,0.00018973,2]
[355161130,1740939033091,-500.0,0.00018973,2]
[355161132,1740939033103,-451.22771256,0.00018973,2]
[355161134,1740939033119,-500.0,0.00018973,2]
[355161136,1740939033132,-151.46662263,0.00018973,2]
[355161138,1740939033147,-500.0,0.00018973,2]
[355161141,1740939033161,-209.94415788,0.00018973,2]
[355161143,1740939033175,-500.0,0.00018973,2]
[355161145,1740939033189,-500.0,0.00018973,2]
[355161147,1740939033202,-500.0,0.00018973,2]
[355161149,1740939033214,-500.0,0.00018973,2]
[355161152,1740939033226,-500.0,0.00018973,2]
[355161154,1740939033239,-500.0,0.00018973,2]
[355161156,1740939033251,-500.0,0.00018999,2]
[355161158,1740939033264,-240.36405911,0.00018999,2]
[355161160,1740939033276,-500.0,0.00018999,2]
[355161163,1740939033289,-500.0,0.00018999,2]
[355161165,1740939033303,-369.84723521,0.00018999,2]
[355161167,1740939033317,-500.0,0.00018999,2]
[355161169,1740939033331,-500.0,0.00018999,2]
[355161171,1740939033344,-500.0,0.00018999,2]
[355161174,1740939033360,-369.93735946,0.00018999,2]
[355161176,1740939033376,-500.0,0.00018999,2]
[355161178,1740939033389,-226.66090133,0.00018999,2]
[355161180,1740939033402,-255.49910587,0.00018999,2]
[355161182,1740939033415,-168.25484137,0.00018999,2]
[355161184,1740939033427,-11951.39447605,0.00019,2]
[355161188,1740939033450,-4352.36055112,0.00019,2]
[355161784,1740939040260,-93770.2073738,0.00019,2]
[355161801,1740939040425,-738.44776438,0.00019,2]
[355162082,1740939044496,-32.34664774,0.00019,2]
[355162337,1740939047509,-443.86523883,0.00019,2]
[355162339,1740939047520,-799.99939,0.00019,2]
[355162350,1740939047616,-7003.1850846,0.00019,2]
[355164602,1740939248967,-200.0,0.00027,120]
[355164603,1740939248992,-3000.0,0.00027397,120]
[355164604,1740939249015,-400.37494551,0.00027397,120]
[355164605,1740939249136,-200.0,0.00027397,120]
[355164606,1740939249166,-25.80505449,0.00029202,120]
[355164607,1740939249297,-124.69494551,0.00029202,120]
[355164608,1740939249320,-150.5,0.00029212,120]
[355164609,1740939249342,-150.5,0.00029222,120]
[355164610,1740939249363,-74.30505449,0.00029294,120]
[355164611,1740939249497,-199.51494551,0.00029294,120]
[355164612,1740939249673,-0.48505449,0.00029304,120]
[355164613,1740939301323,273.82,0.00029294,120]
[355164631,1740939853719,413.39,0.00010959,2]
[355164741,1740940232369,-264.27366,0.00016982,2]
[355164743,1740940232379,-400.553504,0.00017004,2]
[355164745,1740940232391,-587.57283601,0.00017017,2]
[355164755,1740940232479,-1417.32969439,0.00017017,2]
[355164757,1740940232490,-1393.1270024,0.00017049,2]
[355164759,1740940232500,-650.0,0.00017829,2]
[355164761,1740940232509,-300.0,0.00017928,2]
[355164763,1740940232519,-10000.0,0.00017929,2]
[355164765,1740940232529,-250.0,0.00017972,2]
[355164767,1740940232539,-2260.90994754,0.00017977,2]
[355164769,1740940232548,-189.58583209,0.00017977,2]
[355164771,1740940232558,-160.34,0.00018071,2]
[355164773,1740940232567,-475.7465711,0.00018073,2]
[355164775,1740940232577,-500.0,0.00018077,2]
[355164778,1740940232587,-500.0,0.00018077,2]
[355164781,1740940232597,-500.0,0.00018077,2]
[355164783,1740940232606,-500.0,0.00018077,2]
[355164784,1740940232616,-625.32926339,0.00018077,2]
[355164785,1740940232625,-500.0,0.00018077,2]
[355164786,1740940232634,-500.0,0.00018077,2]
[355164787,1740940232646,-500.0,0.00018077,2]
[355164788,1740940232655,-500.0,0.00018077,2]
[355164789,1740940232664,-500.0,0.00018077,2]
[355164790,1740940232673,-500.0,0.00018077,2]
[355164791,1740940232682,-500.0,0.00018077,2]
[355164792,1740940232692,-500.0,0.00018077,2]
[355164793,1740940232702,-500.0,0.00018077,2]
[355164794,1740940232711,-223.72030035,0.00018077,2]
[355164795,1740940232847,-276.27969965,0.00018077,2]
[355164796,1740940232856,-262.09934368,0.00018077,2]
[355164797,1740940233064,-500.0,0.00018077,2]
[355164798,1740940233074,-500.0,0.00018077,2]
[355164799,1740940233085,-500.0,0.00018077,2]
[355164800,1740940233095,-500.0,0.00018077,2]
[355164801,1740940233105,-500.0,0.00018077,2]
[355164802,1740940233115,-500.0,0.00018077,2]
[355164803,1740940233124,-500.0,0.00018077,2]
[355164804,1740940233135,-500.0,0.00018077,2]
[355164805,1740940233147,-500.0,0.00018077,2]
[355164806,1740940233157,-500.0,0.00018077,2]
[355164807,1740940233168,-500.0,0.00018077,2]
[355164808,1740940233178,-500.0,0.00018077,2]
[355164809,1740940233188,-500.0,0.00018077,2]
[355164810,1740940233198,-500.0,0.00018077,2]
[355164811,1740940233208,-500.0,0.00018077,2]
[355164812,1740940233219,-500.0,0.00018077,2]
[355164813,1740940233229,-500.0,0.00018077,2]
[355164814,1740940233239,-500.0,0.00018077,2]
[355164815,1740940233249,-500.0,0.00018077,2]
[355164816,1740940233259,-500.0,0.00018077,2]
[355164817,1740940233269,-1049.72642489,0.00018077,2]
[355164818,1740940233279,-1049.72642489,0.00018077,2]
[355164819,1740940233290,-1049.72642489,0.00018077,2]
[355164820,1740940233300,-1049.72642489,0.00018077,2]
[355164821,1740940233310,-1049.72642489,0.00018077,2]
[355164822,1740940233320,-1049.72642489,0.00018077,2]
[355164823,1740940233329,-1049.72642489,0.00018077,2]
[355164824,1740940233340,-1049.72642489,0.00018077,2]
[355164825,1740940233350,-1049.72642489,0.00018077,2]
[355164826,1740940233359,-1049.72642489,0.00018077,2]
[355164827,1740940233369,-1049.72642489,0.00018077,2]
[355164828,1740940233379,-1049.72642489,0.00018077,2]
[355164829,1740940233390,-1049.72642489,0.00018077,2]
[355164830,1740940233400,-1049.72642489,0.00018077,2]
[355164831,1740940233410,-1049.72642489,0.00018077,2]
[355164832,1740940233425,-1049.72642489,0.00018077,2]
[355164833,1740940233445,-1049.72642489,0.00018077,2]
[355164834,1740940233464,-1049.72642489,0.00018077,2]
[355164835,1740940233476,-1049.72642489,0.00018077,2]
[355164836,1740940233487,-1049.72642489,0.00018077,2]
[355164837,1740940233499,-1049.72642489,0.00018077,2]
[355164838,1740940233511,-1049.72642489,0.00018077,2]
[355164839,1740940233523,-1049.72642489,0.00018077,2]
[355164840,1740940233535,-1049.72642489,0.00018077,2]
[355164841,1740940233546,-1049.72642489,0.00018077,2]
[355164842,1740940233558,-1049.72642489,0.00018077,2]
[355164843,1740940233570,-1049.72642489,0.00018077,2]
[355164844,1740940233581,-1049.72642489,0.00018077,2]
[355164845,1740940233591,-1049.72642489,0.00018077,2]
[355164846,1740940233603,-1049.72642489,0.00018077,2]
[355164847,1740940233615,-1049.72642489,0.00018077,2]
[355164848,1740940233625,-1049.72642489,0.00018077,2]
[355164849,1740940233635,-1049.72642489,0.00018077,2]
[355164850,1740940233647,-1049.72642489,0.00018077,2]
[355164851,1740940233656,-1049.72642489,0.00018077,2]
[355164852,1740940233668,-1049.72642489,0.00018077,2]
[355164853,1740940233680,-1049.72642489,0.00018077,2]
[355164854,1740940233691,-1049.72642489,0.00018077,2]
[355164855,1740940233704,-1049.72642489,0.00018077,2]
[355164856,1740940233716,-1049.72642489,0.00018077,2]
[355164857,1740940233727,-1049.72642489,0.00018077,2]
[355164858,1740940233738,-1049.72642489,0.00018077,2]
[355164859,1740940233748,-1115.33432645,0.00018077,2]
[355164860,1740940233760,-1115.33432645,0.00018077,2]
[355164861,1740940233772,-1115.33432645,0.00018077,2]
[355164862,1740940233781,-1115.33432644,0.00018077,2]
[355164863,1740940233792,-500.0,0.00018077,2]
[355164864,1740940233802,-510.34083389,0.00018077,2]
[355164865,1740940233812,-24900.0,0.00018081,2]
[355164866,1740940233822,-197.92960751,0.000188,2]
[355164867,1740940233832,-189.58583207,0.00018939,2]
[355164868,1740940233841,-10000.21918735,0.00018972,2]
[355164869,1740940233852,-163.3402494,0.00018973,2]
[355164870,1740940233862,-463.69908571,0.00018973,2]
[355164871,1740940233872,-500.65130225,0.00018973,2]
[355164872,1740940233881,-500.0,0.00018973,2]
[355164873,1740940233892,-500.0,0.00018973,2]
[355164874,1740940233903,-506.89817967,0.00018973,2]
[355164875,1740940233913,-500.0,0.00018973,2]
[355164876,1740940233923,-500.0,0.00018973,2]
[355164877,1740940233933,-500.0,0.00018973,2]
[355164878,1740940233943,-500.0,0.00018973,2]
[355164879,1740940233954,-500.0,0.00018973,2]
[355164880,1740940233964,-500.0,0.00018973,2]
[355164881,1740940233974,-500.0,0.00018973,2]
[355164882,1740940233984,-517.60869618,0.00018973,2]
[355164883,1740940233994,-500.0,0.00018973,2]
[355164884,1740940234004,-500.0,0.00018973,2]
[355164885,1740940234014,-500.0,0.00018973,2]
[355164886,1740940234024,-500.0,0.00018973,2]
[355164887,1740940234034,-500.0,0.00018973,2]
[355164888,1740940234044,-155.36601929,0.00018973,2]
[355164889,1740940234054,-273.1190893,0.00018989,2]
[355164890,1740940234064,-200.0,0.00018989,2]
[355164891,1740940234074,-220.0,0.00018989,2]
[355164892,1740940234084,-242.0,0.00018989,2]
[355164893,1740940234094,-266.2,0.00018989,2]
[355164894,1740940234104,-292.82,0.00018989,2]
[355164895,1740940234114,-322.102,0.00018989,2]
[355164896,1740940234124,-354.3122,0.00018989,2]
[355164897,1740940234134,-389.74342,0.00018989,2]
[355164898,1740940234146,-428.717762,0.00018989,2]
[355164899,1740940234156,-400.0,0.00018989,2]
[355164900,1740940234165,-175.25,0.00018999,2]
[355164901,1740940234175,-218222.12502976,0.00019,2]
[355164902,1740940234185,-146287.24004121,0.00019,2]
[355164903,1740940234196,-420.0,0.00019563,2]
[355164904,1740940234206,-189.58583207,0.000199,2]
[355164905,1740940234215,-4632.69405712,0.0002,2]
[355164906,1740940234226,-160.0,0.0002,3]
[355164907,1740940234236,-180.689601,0.00020339,2]
[355164908,1740940234246,-746.83881499,0.00020476,2]
[355164909,1740940234257,-13483.0,0.0002061,2]
[355164910,1740940234267,-151.0,0.000211,3]
[355164911,1740940234442,-587.0,0.00021347,2]
[355164912,1740940234453,-4463.91746574,0.000215,2]
[355164913,1740940234463,-350.02675173,0.000215,2]
[355164914,1740940234472,-151.0,0.000218,4]
[355164915,1740940234483,-3000.0,0.00021817,2]
[355164916,1740940234493,-2423.37561344,0.00021817,2]
[355164917,1740940234503,-5354.14381913,0.00021845,2]
[355164918,1740940234512,-3000.0,0.000219,2]
[355164919,1740940234523,-3000.0,0.0002191,2]
[355164920,1740940234532,-516.82,0.00021917,2]
[355164921,1740940234542,-505.66498177,0.00021917,2]
[355164922,1740940234551,-500.0,0.00021917,2]
[355164923,1740940234561,-500.0,0.00021917,2]
[355164924,1740940234571,-500.0,0.00021917,2]
[355164925,1740940234580,-500.0,0.00021917,2]
[355164926,1740940234590,-500.0,0.00021917,2]
[355164927,1740940234599,-500.0,0.00021917,2]
[355164928,1740940234609,-500.0,0.00021917,2]
[355164929,1740940234619,-500.0,0.00021917,2]
[355164930,1740940234629,-500.0,0.00021917,2]
[355164931,1740940234641,-505.74900511,0.00021917,2]
[355164932,1740940234651,-500.0,0.00021917,2]
[355164933,1740940234661,-500.0,0.00021917,2]
[355164934,1740940234670,-500.0,0.00021917,2]
[355164935,1740940234681,-500.0,0.00021917,2]
[355164936,1740940234691,-500.0,0.00021917,2]
[355164937,1740940234701,-500.0,0.00021917,2]
[355164938,1740940234710,-500.0,0.00021917,2]
[355164939,1740940234720,-500.0,0.00021917,2]
[355164940,1740940234730,-500.0,0.00021917,2]
[355164941,1740940234739,-500.0,0.00021917,2]
[355164942,1740940234749,-500.0,0.00021917,2]
[355164943,1740940234759,-500.0,0.00021917,2]
[355164944,1740940234770,-500.0,0.00021917,2]
[355164945,1740940234782,-500.0,0.00021917,2]
[355164946,1740940234791,-500.0,0.00021917,2]
[355164947,1740940234800,-500.0,0.00021917,2]
[355164948,1740940234810,-500.0,0.00021917,2]
[355164949,1740940234819,-500.0,0.00021917,2]
[355164950,1740940234829,-500.0,0.00021917,2]
[355164951,1740940234838,-500.0,0.00021917,2]
[355164952,1740940234848,-500.0,0.00021917,2]
[355164953,1740940234858,-500.0,0.00021917,2]
[355164954,1740940234868,-500.0,0.00021917,2]
[355164955,1740940234878,-500.0,0.00021917,2]
[355164956,1740940234887,-500.0,0.00021917,2]
[355164957,1740940234899,-500.0,0.00021917,2]
[355164958,1740940234909,-277.65035617,0.00021917,2]
[355164959,1740940234919,-512.9959624,0.00021917,2]
[355164960,1740940234929,-500.0,0.00021917,2]
[355164961,1740940234939,-500.0,0.00021917,2]
[355164962,1740940234949,-500.0,0.00021917,2]
[355164963,1740940234959,-500.0,0.00021917,2]
[355164964,1740940234969,-500.0,0.00021917,2]
[355164965,1740940234979,-365.8134906,0.00021917,2]
[355164987,1740940238005,-264.70892868,0.00018077,2]
[355164988,1740940238018,-244.24722294,0.00018077,2]
[355164989,1740940238027,-57.26386402,0.00018077,2]
[355164990,1740940238040,-442.73613598,0.00018077,2]
[355164991,1740940238049,-500.0,0.00018077,2]
[355164992,1740940238059,-500.0,0.00018077,2]
[355164993,1740940238070,-134.1865094,0.00021917,2]
[355164994,1740940238080,-539.19019435,0.00021917,2]
[355164995,1740940238089,-374.45246057,0.00021917,2]
[355164996,1740940238099,-500.0,0.00021917,2]
[355164997,1740940238108,-500.0,0.00021917,2]
[355164998,1740940238118,-500.0,0.00021917,2]
[355164999,1740940238127,-302.03971138,0.00021917,2]
[355165013,1740940240006,-197.96028862,0.00021917,2]
[355165014,1740940240017,-500.0,0.00021917,2]
[355165015,1740940240027,-500.0,0.00021917,2]
[355165016,1740940240037,-500.0,0.00021917,2]
[355165017,1740940240047,-500.0,0.00021917,2]
[355165018,1740940240056,-500.0,0.00021917,2]
[355165019,1740940240067,-500.0,0.00021917,2]
[355165020,1740940240077,-500.0,0.00021917,2]
[355165021,1740940240087,-500.0,0.00021917,2]
[355165022,1740940240096,-500.0,0.00021917,2]
[355165023,1740940240106,-584.7372218,0.00021917,2]
[355165024,1740940240116,-500.0,0.00021917,2]
[355165025,1740940240125,-500.0,0.00021917,2]
[355165026,1740940240135,-500.46593654,0.00021917,2]
[355165027,1740940240147,-500.0,0.00021917,2]
[355165028,1740940240157,-500.0,0.00021917,2]
[355165029,1740940240167,-500.0,0.00021917,2]
[355165030,1740940240176,-500.0,0.00021917,2]
[355165031,1740940240186,-500.0,0.00021917,2]
[355165032,1740940240196,-503.7359123,0.00021917,2]
[355165033,1740940240206,-500.0,0.00021917,2]
[355165034,1740940240215,-500.0,0.00021917,2]
[355165035,1740940240225,-500.0,0.00021917,2]
[355165036,1740940240235,-500.0,0.00021917,2]
[355165037,1740940240244,-500.0,0.00021917,2]
[355165038,1740940240254,-504.39967408,0.00021917,2]
[355165039,1740940240263,-500.0,0.00021917,2]
[355165040,1740940240274,-500.0,0.00021917,2]
[355165041,1740940240283,-500.0,0.00021917,2]
[355165042,1740940240293,-500.0,0.00021917,2]
[355165043,1740940240302,-500.0,0.00021917,2]
[355165044,1740940240312,-500.0,0.00021917,2]
[355165045,1740940240321,-500.0,0.00021917,2]
[355165046,1740940240331,-500.0,0.00021917,2]
[355165047,1740940240341,-613.79440752,0.00021917,2]
[355165048,1740940240350,-500.0,0.00021917,2]
[355165049,1740940240360,-500.0,0.00021917,2]
[355165050,1740940240370,-500.0,0.00021917,2]
[355165051,1740940240379,-490.0,0.00021917,2]
[355165052,1740940240389,-500.0,0.00021917,2]
[355165053,1740940240402,-500.0,0.00021917,2]
[355165054,1740940240412,-500.0,0.00021917,2]
[355165055,1740940240422,-500.0,0.00021917,2]
[355165056,1740940240432,-500.0,0.00021917,2]
[355165057,1740940240442,-500.0,0.00021917,2]
[355165058,1740940240453,-500.0,0.00021917,2]
[355165059,1740940240463,-500.0,0.00021917,2]
[355165060,1740940240473,-506.82639246,0.00021917,2]
[355165061,1740940240483,-500.0,0.00021917,2]
[355165062,1740940240493,-500.0,0.00021917,2]
[355165063,1740940240503,-500.0,0.00021917,2]
[355165064,1740940240513,-500.0,0.00021917,2]
[355165065,1740940240523,-500.0,0.00021917,2]
[355165066,1740940240536,-500.0,0.00021917,2]
[355165067,1740940240546,-500.0,0.00021917,2]
[355165068,1740940240556,-500.0,0.00021917,2]
[355165069,1740940240566,-500.0,0.00021917,2]
[355165070,1740940240576,-500.0,0.00021917,2]
[355165071,1740940240586,-500.0,0.00021917,2]
[355165072,1740940240596,-500.0,0.00021917,2]
[355165073,1740940240605,-500.0,0.00021917,2]
[355165074,1740940240615,-500.0,0.00021917,2]
[355165075,1740940240625,-500.0,0.00021917,2]
[355165076,1740940240634,-500.0,0.00021917,2]
[355165077,1740940240646,-500.0,0.00021917,2]
[355165078,1740940240656,-500.0,0.00021917,2]
[355165079,1740940240665,-500.0,0.00021917,2]
[355165080,1740940240675,-295.78506735,0.00021917,2]
[355165101,1740940243093,-204.21493265,0.00021917,2]
[355165102,1740940243104,-500.0,0.00021917,2]
[355165103,1740940243114,-500.0,0.00021917,2]
[355165104,1740940243123,-500.0,0.00021917,2]
[355165105,1740940243133,-500.0,0.00021917,2]
[355165106,1740940243142,-500.0,0.00021917,2]
[355165107,1740940243152,-500.0,0.00021917,2]
[355165108,1740940243162,-449.46208928,0.00021917,2]
[355165109,1740940243171,-501.82938829,0.00021917,2]
[355165110,1740940243181,-500.0,0.00021917,2]
[355165111,1740940243190,-500.0,0.00021917,2]
[355165112,1740940243199,-500.0,0.00021917,2]
[355165113,1740940243209,-500.0,0.00021917,2]
[355165114,1740940243219,-500.0,0.00021917,2]
[355165115,1740940243228,-500.0,0.00021917,2]
[355165116,1740940243238,-500.0,0.00021917,2]
[355165117,1740940243248,-514.40560823,0.00021917,2]
[355165118,1740940243257,-500.0,0.00021917,2]
[355165119,1740940243267,-500.0,0.00021917,2]
[355165120,1740940243278,-517.81555958,0.00021917,2]
[355165121,1740940243287,-500.0,0.00021917,2]
[355165122,1740940243298,-500.0,0.00021917,2]
[355165123,1740940243307,-505.7,0.00021917,2]
[355165124,1740940243317,-500.0,0.00021917,2]
[355165125,1740940243327,-500.0,0.00021917,2]
[355165126,1740940243337,-500.0,0.00021917,2]
[355165127,1740940243347,-500.0,0.00021917,2]
[355165128,1740940243356,-500.0,0.00021917,2]
[355165129,1740940243366,-500.0,0.00021917,2]
[355165130,1740940243376,-500.0,0.00021917,2]
[355165131,1740940243385,-500.0,0.00021917,2]
[355165132,1740940243546,-500.0,0.00021917,2]
[355165133,1740940243556,-500.0,0.00021917,2]
[355165134,1740940243565,-500.0,0.00021917,2]
[355165135,1740940243575,-500.0,0.00021917,2]
[355165136,1740940243584,-277.04,0.00021917,2]
[355165137,1740940243594,-250.0,0.00021917,2]
[355165138,1740940243604,-500.0,0.00021917,2]
[355165139,1740940243614,-501.07923221,0.00021917,2]
[355165140,1740940243624,-500.0,0.00021917,2]
[355165141,1740940243634,-500.0,0.00021917,2]
[355165142,1740940243646,-500.0,0.00021917,2]
[355165143,1740940243655,-500.0,0.00021917,2]
[355165144,1740940243664,-500.0,0.00021917,2]
[355165145,1740940243674,-500.0,0.00021917,2]
[355165146,1740940243684,-500.0,0.00021917,2]
[355165147,1740940243694,-500.0,0.00021917,2]
[355165148,1740940243703,-362.23011645,0.00021917,2]
[355165149,1740940243713,-500.0,0.00021917,2]
[355165150,1740940243723,-492.70444578,0.00021917,2]
[355165151,1740940243732,-574.95481775,0.00021917,2]
[355165152,1740940243741,-500.0,0.00021917,2]
[355165153,1740940243751,-500.0,0.00021917,2]
[355165154,1740940243764,-500.0,0.00021917,2]
[355165155,1740940243774,-500.0,0.00021917,2]
[355165156,1740940243784,-500.0,0.00021917,2]
[355165157,1740940243793,-500.0,0.00021917,2]
[355165158,1740940243803,-500.0,0.00021917,2]
[355165159,1740940243814,-500.0,0.00021917,2]
[355165160,1740940243824,-500.0,0.00021917,2]
[355165161,1740940243834,-522.90467603,0.00021917,2]
[355165162,1740940243844,-500.0,0.00021917,2]
[355165163,1740940243854,-500.0,0.00021917,2]
[355165164,1740940243864,-500.0,0.00021917,2]
[355165165,1740940243873,-500.0,0.00021917,2]
[355165166,1740940243883,-293.44548776,0.00021917,2]
[355165167,1740940243892,-500.0,0.00021917,2]
[355165168,1740940243902,-500.0,0.00021917,2]
[355165169,1740940243912,-615.95050168,0.00021917,2]
[355165170,1740940243922,-912.85,0.00021917,2]
[355165171,1740940243932,-500.0,0.00021917,2]
[355165172,1740940243942,-500.0,0.00021917,2]
[355165173,1740940243952,-500.0,0.00021917,2]
[355165174,1740940243962,-500.0,0.00021917,2]
[355165175,1740940243971,-500.0,0.00021917,2]
[355165176,1740940243982,-500.0,0.00021917,2]
[355165177,1740940243991,-500.0,0.00021917,2]
[355165178,1740940244001,-608.16,0.00021917,2]
[355165179,1740940244011,-500.0,0.00021917,2]
[355165180,1740940244021,-500.0,0.00021917,2]
[355165181,1740940244031,-500.0,0.00021917,2]
[355165182,1740940244052,-500.0,0.00021917,2]
[355165183,1740940244065,-500.0,0.00021917,2]
[355165184,1740940244076,-500.0,0.00021917,2]
[355165185,1740940244087,-828.47,0.00021917,2]
[355165186,1740940244098,-500.0,0.00021917,2]
[355165187,1740940244109,-500.0,0.00021917,2]
[355165188,1740940244120,-500.0,0.00021917,2]
[355165189,1740940244131,-500.0,0.00021917,2]
[355165190,1740940244141,-500.0,0.00021917,2]
[355165191,1740940244153,-505.07685721,0.00021917,2]
[355165192,1740940244164,-500.0,0.00021917,2]
[355165193,1740940244176,-500.0,0.00021917,2]
[355165194,1740940244187,-504.67246536,0.00021917,2]
[355165195,1740940244198,-500.0,0.00021917,2]
[355165196,1740940244208,-500.0,0.00021917,2]
[355165197,1740940244219,-500.0,0.00021917,2]
[355165198,1740940244230,-500.0,0.00021917,2]
[355165199,1740940244240,-500.0,0.00021917,2]
[355165200,1740940244250,-500.0,0.00021917,2]
[355165201,1740940244261,-500.0,0.00021917,2]
[355165202,1740940244271,-500.0,0.00021917,2]
[355165203,1740940244281,-500.0,0.00021917,2]
[355165204,1740940244292,-500.0,0.00021917,2]
[355165205,1740940244303,-500.0,0.00021917,2]
[355165206,1740940244314,-500.0,0.00021917,2]
[355165207,1740940244324,-500.0,0.00021917,2]
[355165208,1740940244335,-276.5057423,0.00021917,2]
[355165209,1740940244345,-500.0,0.00021917,2]
[355165210,1740940244356,-500.0,0.00021917,2]
[355165211,1740940244366,-500.0,0.00021917,2]
[355165212,1740940244377,-500.0,0.00021917,2]
[355165213,1740940244388,-500.0,0.00021917,2]
[355165214,1740940244401,-500.0,0.00021917,2]
[355165215,1740940244412,-500.0,0.00021917,2]